bitfinex-derivatives/quotes_SOLF0:USTF0_20240815
["timestamp","ask_amount","ask_price","bid_price","bid_amount"]
[1723688823192,3.52229356,144.02,143.99,0.0445633]
[1723688823400,0.05069356,144.02,143.99,0.0445633]
[1723688823802,3.4718,144.01,143.99,0.0445633]
[1723688826098,3.52229356,144.02,143.99,0.0445633]
[1723688826605,0.05069356,144.02,143.99,26.7245633]
[1723688826911,0.05069356,144.02,144.01,26.68]
[1723688827405,1.2878,144.1,144.01,26.68]
[1723688827597,5.14,144.09,144.01,26.68]
[1723688827803,3.4704,144.07,144.03,3.4711]
[1723688828403,3.4705,144.06,144.02,3.4712]
[1723688828605,5.14,144.09,144.04,0.04623332]
[1723688829705,3.4703,144.07,144.04,0.04623332]
[1723688831608,3.4705,144.06,144.04,0.04623332]
[1723688832310,3.4703,144.07,144.04,0.04623332]
[1723688834109,3.4707,144.05,144.04,0.04623332]
[1723688834310,5.14,144.09,144.04,0.04623332]
[1723688834714,3.4706,144.06,144.04,0.04623332]
[1723688835113,5.14,144.09,144.04,0.04623332]
[1723688835317,3.4707,144.05,144.04,0.04623332]
[1723688840923,3.4705,144.06,144.04,0.04623332]
[1723688841422,5.14,144.09,144.04,0.04623332]
[1723688843312,3.4706,144.06,144.04,0.04623332]
[1723688844417,3.4707,144.05,144.04,0.04623332]
[1723688846830,3.4707,144.05,143.96,7.6958]
[1723688846831,10.66,144.02,143.96,15.78]
[1723688847037,10.66,144.02,143.85,42.64]
[1723688847038,10.66,143.98,143.82,12.0722]
[1723688847327,10.66,143.95,143.88,10.66]
[1723688847520,10.66,143.91,143.85,10.66]
[1723688847720,10.66,143.91,143.82,2.5961]
[1723688847721,10.66,143.89,143.83,10.66]
[1723688847928,5.12,143.88,143.81,26.7]
[1723688848228,4.7689,143.94,143.86,26.7]
[1723688848525,6.4155,143.94,143.87,26.74375874]
[1723688848727,3.4738,143.92,143.87,26.74375874]
[1723688849221,0.04648876,143.91,143.87,30.21875874]
[1723688849626,0.04648876,143.91,143.87,26.74375874]
[1723688850523,0.04648876,143.91,143.87,0.04375874]
[1723688850722,3.4748,143.88,143.87,0.04375874]
[1723688851029,5.12,143.88,143.79,26.7]
[1723688851328,3.4757,143.85,143.8,3.4766]
[1723688851821,3.4754,143.86,143.81,26.7]
[1723688852216,0.05054485,143.84,143.81,30.2275367]
[1723688853048,3.4761,143.83,143.81,0.0512367]
[1723688853324,0.05054485,143.84,143.81,0.0512367]
[1723688853720,3.4763,143.82,143.81,0.0512367]
[1723688865631,3.4773,143.78,143.72,26.7]
[1723688865830,26.7,143.81,143.72,26.7]
[1723688866135,26.7,143.81,143.72,3.4785]
[1723688866136,3.4776,143.77,143.72,3.4785]
[1723688867233,0.048496,143.76,143.73,3.5255379]
[1723688868237,0.048496,143.76,143.73,0.0471379]
[1723688868925,3.526296,143.76,143.73,0.0471379]
[1723688869133,0.048496,143.76,143.73,0.0471379]
[1723688870238,3.526296,143.76,143.73,0.0471379]
[1723688870934,3.526296,143.76,143.73,3.5255379]
[1723688871337,0.048496,143.76,143.73,0.0471379]
[1723688872235,3.526296,143.76,143.73,0.0471379]
[1723688872734,3.478,143.75,143.73,0.0471379]
[1723688874439,3.526296,143.76,143.73,0.0471379]
[1723688874741,0.048496,143.76,143.73,3.5255379]
[1723688875034,0.048496,143.76,143.73,0.0471379]
[1723688875232,0.048496,143.76,143.74,3.478]
[1723688875844,0.048496,143.76,143.73,14.2154379]
[1723688876035,0.048496,143.76,143.73,10.7371379]
[1723688876740,0.048496,143.76,143.73,14.2154379]
[1723688876941,0.048496,143.76,143.73,10.7371379]
[1723688877331,0.048496,143.76,143.73,14.2154379]
[1723688877642,3.526196,143.76,143.73,3.5254379]
[1723688877836,0.048496,143.76,143.73,0.0471379]
[1723688878233,3.4782,143.74,143.73,0.0471379]
[1723688879040,3.4782,143.74,143.65,5.12]
[1723688879041,0.048496,143.76,143.65,5.12]
[1723688879338,0.048496,143.76,143.61,2.6495]
[1723688879339,26.74,143.7,143.61,2.6495]
[1723688879542,26.74,143.66,143.46,225.0]
[1723688879739,26.74,143.66,143.56,26.74]
[1723688879740,31.86,143.66,143.56,26.74]
[1723688879941,26.74,143.65,143.56,26.74]
[1723688880252,5.12,143.65,143.56,26.74]
[1723688880746,3.47901732,143.66,143.56,26.74]
[1723688880946,0.04628359,143.62,143.59,0.04676955]
[1723688881142,0.04628359,143.62,143.59,3.52846955]
[1723688881643,0.04628359,143.62,143.61,3.4813]
[1723688881847,5.12,143.67,143.6,26.74]
[1723688882146,3.48,143.67,143.62,3.481]
[1723688882647,3.4798,143.68,143.63,3.4807]
[1723688883148,0.049075,143.67,143.64,0.05188945]
[1723688883343,0.049075,143.67,143.64,26.79188945]
[1723688883742,0.049075,143.67,143.66,30.2201]
[1723688884151,0.049075,143.67,143.64,26.79188945]
[1723688885146,0.049075,143.67,143.64,0.05188945]
[1723688885443,0.049075,143.67,143.64,3.53228945]
[1723688885849,0.049075,143.67,143.64,0.05188945]
[1723688886041,0.049075,143.67,143.64,26.79188945]
[1723688886248,0.049075,143.67,143.66,26.74]
[1723688886543,0.049075,143.67,143.64,26.79188945]
[1723688887051,5.12,143.72,143.64,26.79188945]
[1723688887253,563.0,143.82,143.7,26.74]
[1723688887451,17.3645,143.96,143.65,31.86]
[1723688887452,5.49611926,143.8,143.71,26.74]
[1723688887651,5.12,143.8,143.72,3.4786]
[1723688887949,5.12,143.8,143.71,26.74]
[1723688888450,0.04475129,143.77,143.75,26.74]
[1723688889153,5.1,143.83,143.75,26.74]
[1723688889351,26.74,143.82,143.72,1.3053]
[1723688889847,0.04861614,143.77,143.75,0.05127848]
[1723688890453,33.41,143.82,143.75,0.05127848]
[1723688891054,0.04457609,143.77,143.75,0.05127848]
[1723688891261,33.41,143.82,143.75,0.05127848]
[1723688891661,0.04393976,143.77,143.75,0.05127848]
[1723688891859,8.54755121,143.77,143.67,41.9897]
[1723688892057,8.54755121,143.77,143.65,33.41]
[1723688892058,34.7396,143.76,143.65,33.41]
[1723688892255,36.0491,143.76,143.65,33.41]
[1723688892461,3.4786,143.73,143.68,3.4796]
[1723688893060,0.04815968,143.72,143.68,33.41]
[1723688893360,1.3095,143.89,143.72,33.41]
[1723688893557,33.41,143.88,143.69,6.3216]
[1723688893764,33.41,143.86,143.74,33.41]
[1723688893965,4.82625753,143.85,143.74,33.41]
[1723688894166,3.4764,143.82,143.76,3.4775]
[1723688894368,5.1,143.81,143.76,3.4775]
[1723688894566,5.15154565,143.81,143.78,0.05130835]
[1723688894957,8.62814565,143.81,143.78,0.05130835]
[1723688895566,0.05154565,143.81,143.78,0.05130835]
[1723688896164,0.05154565,143.81,143.8,3.4767]
[1723688896567,5.1,143.87,143.79,34.7231]
[1723688896773,1.2701,143.92,143.84,33.41]
[1723688897161,1.2701,143.92,143.8,38.51]
[1723688897162,6.3629,143.95,143.86,33.41]
[1723688897362,1.2629,143.95,143.89,33.41]
[1723688897872,0.04605626,143.93,143.91,0.04601304]
[1723688898664,3.4738,143.92,143.91,0.04601304]
[1723688898966,0.04605626,143.93,143.81,1.1629]
[1723688899168,3.4746,143.89,143.83,3.4758]
[1723688899371,3.4746,143.89,143.81,34.5729]
[1723688900275,0.04652304,143.86,143.84,0.05207033]
[1723688900771,0.05104912,143.86,143.84,0.05207033]
[1723688903371,0.05104912,143.86,143.85,3.4755]
[1723688904069,5.1,143.92,143.86,33.41]
[1723688904476,8.574,143.92,143.88,3.4746]
[1723688904668,5.1,143.92,143.86,33.41]
[1723688904971,8.5739,143.92,143.86,33.41]
[1723688905167,0.04102018,143.9,143.88,3.52317979]
[1723688905673,1.2687,143.99,143.89,3.4746]
[1723688905869,1.2687,143.99,143.9,33.41]
[1723688905870,5.1,143.98,143.9,33.41]
[1723688906271,5.1,143.98,143.93,3.4736]
[1723688906472,5.1,143.98,143.9,33.41]
[1723688906773,5.1,143.98,143.93,3.4735]
[1723688907280,3.4728,143.97,143.93,3.51799763]
[1723688907476,5.1,143.98,143.93,0.04449763]
[1723688907678,38.51,143.98,143.93,0.04449763]
[1723688908272,3.4727,143.97,143.93,0.04449763]
[1723688908576,5.1,143.98,143.93,0.04449763]
[1723688909776,3.4732,143.95,143.93,0.04449763]
[1723688909974,33.41,143.97,143.93,0.04449763]
[1723688910177,34.6249,143.97,143.93,0.04449763]
[1723688910383,3.4733,143.94,143.93,0.04449763]
[1723688910574,1.2149,143.97,143.93,0.04449763]
[1723688910872,3.473,143.96,143.93,0.04449763]
[1723688911076,5.1,143.98,143.93,0.04449763]
[1723688911479,33.41,143.99,143.93,0.04449763]
[1723688911670,3.4732,143.95,143.93,0.04449763]
[1723688912881,3.473,143.96,143.93,0.04449763]
[1723688913078,5.1,143.97,143.93,0.04449763]
[1723688913381,3.4731,143.95,143.93,0.04449763]
[1723688913782,5.1,143.97,143.93,0.04449763]
[1723688914591,3.4732,143.95,143.93,0.04449763]
[1723688914777,38.51,143.97,143.93,0.04449763]
[1723688914983,3.4733,143.94,143.93,0.04449763]
[1723688915383,1.3202,143.96,143.93,0.04449763]
[1723688915780,5.1,143.96,143.93,0.04449763]
[1723688916084,3.4729,143.96,143.93,0.04449763]
[1723688916278,5.1,143.98,143.93,0.04449763]
[1723688916583,3.4723,143.99,143.93,33.45449763]
[1723688916782,3.4723,143.99,143.94,3.4732]
[1723688916984,5.1,144.0,143.94,3.4732]
[1723688918686,3.4724,143.98,143.94,3.4732]
[1723688920387,3.4724,143.98,143.93,3.51799763]
[1723688920587,3.4728,143.97,143.93,0.04449763]
[1723688921185,3.4728,143.97,143.93,3.51789763]
[1723688921680,3.473,143.96,143.93,0.04449763]
[1723688921880,5.1,144.0,143.93,0.04449763]
[1723688922285,3.473,143.96,143.93,0.04449763]
[1723688923490,3.4728,143.97,143.93,3.51809763]
[1723688923791,5.1,144.0,143.93,0.04449763]
[1723688924589,3.4731,143.96,143.93,0.04449763]
[1723688926082,3.4731,143.96,143.93,3.51809763]
[1723688927189,3.4731,143.96,143.93,0.04449763]
[1723688928594,3.4731,143.96,143.93,3.51809763]
[1723688929984,3.4733,143.94,143.93,0.04449763]
[1723688930383,33.41,143.99,143.93,0.04449763]
[1723688930983,3.4733,143.94,143.93,0.04449763]
[1723688931188,38.51,143.95,143.84,38.51]
[1723688931392,3.4742,143.91,143.87,3.4749]
[1723688931693,3.4742,143.91,143.84,38.51]
[1723688932095,3.4742,143.91,143.87,3.4749]
[1723688932689,0.04449763,143.9,143.88,0.04660717]
[1723688936094,1.3293,143.98,143.89,26.71]
[1723688936392,1.3293,143.98,143.85,30.1109944]
[1723688936393,1.3293,143.98,143.92,26.71]
[1723688937091,3.473,143.96,143.93,3.4735]
[1723688937297,1.3293,143.98,143.92,26.71]
[1723688937503,3.4727,143.97,143.94,26.71]
[1723688937793,7.5957,143.99,143.94,26.75432215]
[1723688937996,6.3311,143.99,143.94,33.39432215]
[1723688938392,3.4725,143.98,143.94,36.86752215]
[1723688940096,3.4725,143.98,143.94,33.39432215]
[1723688940297,9.8034,143.99,143.95,3.4731]
[1723688940600,6.3311,143.99,143.95,3.4731]
[1723688941099,9.8033,143.99,143.95,3.4731]
[1723688941297,4.7033,143.99,143.95,3.4731]
[1723688941504,1.2311,143.99,143.95,3.4731]
[1723688942301,4.7033,143.99,143.95,3.4731]
[1723688942602,1.2689,144.02,143.94,33.39432215]
[1723688942799,6.0325,144.02,143.96,33.35]
[1723688943003,2.5609,144.02,143.98,3.4722]
[1723688943296,2.5609,144.02,143.98,0.04808256]
[1723688943499,3.4721,143.99,143.98,0.04808256]
[1723688943698,2.5609,144.02,143.98,0.04808256]
[1723688944097,3.4718,144.01,143.98,0.04808256]
[1723688944300,2.5609,144.02,143.98,0.04808256]
[1723688944704,3.4717,144.01,143.98,0.04808256]
[1723688945503,2.5609,144.02,143.98,0.04808256]
[1723688945701,35.9109,144.02,143.98,0.04808256]
[1723688946004,3.4721,143.99,143.98,0.04808256]
[1723688948194,1.292,144.02,143.98,0.04808256]
[1723688948905,3.4718,144.01,143.98,0.04808256]
[1723688949600,1.292,144.02,143.98,0.04808256]
[1723688950005,3.4718,144.01,143.98,0.04808256]
[1723688951103,1.2829,144.04,143.98,0.04808256]
[1723688951304,1.226,144.06,143.98,33.39808256]
[1723688951496,3.4708,144.05,144.01,3.4715]
[1723688952101,3.471,144.04,144.01,3.4715]
[1723688952300,3.471,144.04,144.02,0.0459329]
[1723688952504,1.226,144.06,144.02,0.0459329]
[1723688952899,3.4708,144.05,144.02,0.0459329]
[1723688953303,3.4708,144.05,144.02,3.5172329]
[1723688953495,3.4708,144.05,144.02,0.0459329]
[1723688953709,3.4709,144.04,144.02,0.0459329]
[1723688954206,3.4709,144.05,144.02,0.0459329]
[1723688955706,22.34382607,144.04,144.02,0.0459329]
[1723688956402,22.34401839,144.03,144.02,0.0459329]
[1723688956595,71.88639938,144.03,143.98,29.86672505]
[1723688956796,71.88639938,144.02,143.98,29.86672505]
[1723688956998,71.88639938,144.01,143.98,29.86672505]
[1723688957205,22.34492994,144.0,143.98,29.86672505]
[1723688957405,71.88851202,143.99,143.98,29.86672505]
[1723688957601,50.52592905,143.99,143.98,33.33912505]
[1723688958001,71.88851202,143.99,143.98,30.1324]
[1723688960513,3.4707,144.05,143.98,26.66]
[1723688960808,38.29262908,144.04,144.01,26.66]
[1723688960996,38.29262908,144.03,144.01,26.66]
[1723688961201,3.4707,144.05,144.02,3.4713]
[1723688961400,38.29182931,144.04,144.01,26.66]
[1723688961611,26.92754408,144.03,144.01,26.66]
[1723688961909,26.92754408,144.02,144.01,26.70995425]
[1723688962108,7.96436667,144.02,144.01,26.70995425]
[1723688962309,26.92754408,144.02,144.01,26.70995425]
[1723688962811,26.92754408,144.02,144.01,30.18165425]
[1723688963305,26.92754408,144.02,144.01,3.52165425]
[1723688963606,32.9675,144.08,144.02,3.4712]
[1723688963806,3.4708,144.05,144.02,3.4712]
[1723688964203,32.9675,144.08,144.02,3.4712]
[1723688964409,3.4708,144.05,144.02,3.4712]
[1723688966310,3.471,144.04,144.02,3.4712]
[1723688966510,3.471,144.04,144.01,3.52155425]
[1723688967401,3.471,144.04,144.02,3.4714]
[1723688967909,3.4708,144.05,144.02,3.4714]
[1723688969012,32.9675,144.08,144.01,0.04995425]
[1723688969322,26.66,144.05,143.85,3.4009944]
[1723688969608,3.4722,143.99,143.96,3.4727]
[1723688969810,3.4722,143.99,143.93,35.293125]
[1723688970204,3.4722,143.99,143.96,3.4728]
[1723688970410,0.04995425,143.97,143.95,0.04694238]
[1723688970816,5.08,144.03,143.95,26.70694238]
[1723688971119,3.4718,144.01,143.95,26.70694238]
[1723688971307,0.04548803,144.0,143.95,26.70694238]
[1723688971717,0.04548803,144.0,143.97,3.4725]
[1723688971718,3.51738803,144.0,143.97,3.4725]
[1723688973515,0.04548803,144.0,143.97,26.66]
[1723688974412,0.04548803,144.0,143.96,26.66]
[1723688975011,0.04548803,144.0,143.98,3.4722]
[1723688976017,0.04548803,144.0,143.99,3.4721]
[1723688976417,0.04548803,144.0,143.98,0.05139051]
[1723688977116,0.04548803,144.0,143.98,3.52359051]
[1723688977714,0.04548803,144.0,143.99,30.1321]
[1723688980121,0.04548803,144.0,143.99,3.4721]
[1723688981716,0.04548803,144.0,143.98,0.05139051]
[1723688982321,3.4721,143.99,143.98,0.05139051]
[1723688983223,3.4724,143.98,143.95,3.4729]
[1723688984529,3.4724,143.98,143.95,3.51824231]
[1723688985724,3.4724,143.98,143.95,0.04534231]
[1723688986028,3.4727,143.97,143.95,0.04534231]
[1723688986524,3.4725,143.98,143.95,0.04534231]
[1723688987329,3.4725,143.98,143.95,3.51844231]
[1723688988629,0.04548803,144.0,143.95,26.70534231]
[1723688988830,0.04548803,144.0,143.97,26.66]
[1723688989025,0.04548803,144.0,143.99,26.66]
[1723688989828,0.04548803,144.0,143.99,30.1321]
[1723688996437,0.04548803,144.0,143.98,0.05203134]
[1723688997235,0.04548803,144.0,143.99,3.4721]
[1723689000030,0.04548803,144.0,143.98,3.52433134]
[1723689000734,0.04548803,144.0,143.99,3.4721]
[1723689002935,0.04548803,144.0,143.98,0.05203134]
[1723689003138,0.04548803,144.0,143.98,3.52423134]
[1723689003439,0.04548803,144.0,143.98,0.05203134]
[1723689003736,0.04548803,144.0,143.92,5.08]
[1723689003942,3.4725,143.98,143.93,14.75249465]
[1723689004139,7.7633,144.02,143.94,41.41179693]
[1723689004442,3.4722,143.99,143.94,26.66]
[1723689004638,37.88617518,144.02,143.94,26.66]
[1723689005038,3.52149311,143.98,143.95,0.05078525]
[1723689005237,0.04899311,143.98,143.95,3.52378525]
[1723689005540,3.52149311,143.98,143.95,3.52378525]
[1723689006348,0.04899311,143.98,143.96,3.4728]
[1723689006541,0.04899311,143.98,143.95,0.05078525]
[1723689006738,0.04899311,143.98,143.96,26.66]
[1723689006942,0.04899311,143.98,143.97,3.4726]
[1723689007637,0.04899311,143.98,143.96,30.1327]
[1723689008733,3.52149311,143.98,143.95,3.52388525]
[1723689009336,3.52149311,143.98,143.95,0.05078525]
[1723689009337,0.04899311,143.98,143.95,0.05078525]
[1723689009542,1.3302,143.97,143.95,0.05078525]
[1723689010146,3.4729,143.96,143.95,0.05078525]
[1723689010538,1.3302,143.97,143.95,0.05078525]
[1723689010739,4.8029,143.97,143.95,0.05078525]
[1723689011142,1.3302,143.97,143.95,0.05078525]
[1723689011442,0.04899311,143.98,143.96,26.66]
[1723689012448,0.04899311,143.98,143.95,0.05078525]
[1723689012645,0.04899311,143.98,143.95,26.71078525]
[1723689013942,0.04899311,143.98,143.96,3.4727]
[1723689014948,0.04899311,143.98,143.97,3.4726]
[1723689016647,0.04899311,143.98,143.96,3.4727]
[1723689017242,0.04899311,143.98,143.95,0.05078525]
[1723689018143,3.4728,143.97,143.95,0.05078525]
[1723689018748,3.52149311,143.98,143.95,3.52378525]
[1723689019348,3.4726,143.97,143.95,0.05078525]
[1723689020853,3.52149311,143.98,143.95,3.52388525]
[1723689021048,3.52149311,143.98,143.95,0.05078525]
[1723689021452,3.52149311,143.98,143.95,3.52388525]
[1723689022255,3.4726,143.97,143.95,0.05078525]
[1723689026053,3.52149311,143.98,143.95,3.52388525]
[1723689026263,0.04899311,143.98,143.95,0.05078525]
[1723689028363,3.4729,143.96,143.95,0.05078525]
[1723689028564,10.71899311,143.98,143.86,5.06]
[1723689028565,10.67,143.97,143.86,5.06]
[1723689028760,11.8882,143.95,143.89,10.67]
[1723689029366,3.4739,143.92,143.89,10.67]
[1723689029963,3.4741,143.91,143.89,0.05274237]
[1723689030163,0.04446242,143.92,143.85,26.71]
[1723689030361,35.34429768,143.92,143.85,3.4755]
[1723689030672,26.71,143.9,143.81,31.77]
[1723689030858,29.2226,143.89,143.82,14.76703081]
[1723689031058,3.4759,143.84,143.8,3.4767]
[1723689031268,5.06,143.86,143.77,26.71]
[1723689031463,5.06,143.86,143.79,3.4768]
[1723689031668,5.06,143.86,143.77,26.71]
[1723689032058,3.4761,143.83,143.81,0.04756694]
[1723689032265,3.52028198,143.83,143.81,0.04756694]
[1723689032858,0.04418198,143.83,143.81,0.04756694]
[1723689033061,0.04418198,143.83,143.81,26.75756694]
[1723689033263,0.04418198,143.83,143.82,3.4762]
[1723689033462,2.5126,143.89,143.81,26.75756694]
[1723689033664,5.06,143.95,143.87,26.71]
[1723689033869,1.2908,143.94,143.87,26.71]
[1723689034064,3.474,143.92,143.88,3.4746]
[1723689034261,1.2908,143.94,143.84,3.41038654]
[1723689034463,1.2908,143.94,143.89,26.71]
[1723689034667,1.2908,143.94,143.87,26.71]
[1723689035074,0.05067476,143.9,143.88,0.05277031]
[1723689036071,0.05067476,143.9,143.88,3.52757031]
[1723689039371,0.05067476,143.9,143.88,0.05277031]
[1723689039573,3.4745,143.89,143.88,0.05277031]
[1723689040177,3.4751,143.87,143.83,30.1859]
[1723689041071,1.2866,143.88,143.81,26.71]
[1723689041468,1.2866,143.88,143.84,0.05176614]
[1723689041469,0.04953605,143.86,143.84,0.05176614]
[1723689041664,3.4757,143.85,143.84,0.05176614]
[1723689043979,3.52493605,143.86,143.84,0.05176614]
[1723689044273,0.04953605,143.86,143.84,26.76176614]
[1723689045878,0.04953605,143.86,143.84,30.23736614]
[1723689047175,0.04953605,143.86,143.85,3.4755]
[1723689047678,0.04953605,143.86,143.84,26.76176614]
[1723689048781,0.04953605,143.86,143.85,3.4755]
[1723689049780,0.04953605,143.86,143.85,30.1855]
[1723689051988,0.04953605,143.86,143.85,3.4755]
[1723689053378,0.04953605,143.86,143.85,30.1855]
[1723689054279,0.04953605,143.86,143.85,3.4755]
[1723689056180,0.04953605,143.86,143.85,30.1855]
[1723689056476,1.2201,143.92,143.85,26.71]
[1723689056677,1.2199,143.97,143.89,26.71]
[1723689056877,2.6502,143.96,143.91,26.71]
[1723689057174,3.4732,143.95,143.91,26.71]
[1723689057877,0.04962835,143.94,143.92,0.05225263]
[1723689058481,3.4736,143.93,143.92,0.05225263]
[1723689058881,3.52302835,143.94,143.92,0.05225263]
[1723689060282,0.04962835,143.94,143.92,0.05225263]
[1723689061583,0.04962835,143.94,143.86,5.06]
[1723689061584,26.75962835,143.94,143.86,5.06]
[1723689061785,0.04962835,143.94,143.86,31.77]
[1723689062482,3.4741,143.91,143.88,3.4747]
[1723689062788,3.4741,143.91,143.89,0.04450366]
[1723689063085,3.51992421,143.91,143.89,0.04450366]
[1723689063291,0.04582421,143.91,143.89,0.04450366]
[1723689063989,0.04582421,143.91,143.66,12.78687636]
[1723689063990,0.04582421,143.91,143.81,31.77]
[1723689064186,26.71,143.9,143.81,31.77]
[1723689064391,26.71,143.9,143.81,26.71]
[1723689064392,1.2836,143.89,143.81,26.71]
[1723689064588,26.71,143.88,143.79,5.06]
[1723689064780,3.4758,143.84,143.78,26.71]
[1723689065485,0.0477192,143.82,143.8,0.05076474]
[1723689065992,26.71,143.86,143.75,31.77]
[1723689066491,3.4764,143.82,143.78,3.4772]
[1723689066687,3.4764,143.82,143.8,0.04420299]
[1723689066688,0.04466132,143.82,143.8,0.04420299]
[1723689066894,3.52106132,143.82,143.8,0.04420299]
[1723689067189,3.52106132,143.82,143.78,3.477]
[1723689067388,3.52106132,143.82,143.8,0.04633011]
[1723689067583,3.4765,143.81,143.8,0.04633011]
[1723689067986,26.75466132,143.82,143.73,3.4783]
[1723689068290,31.81466132,143.82,143.73,3.4783]
[1723689068488,31.77,143.82,143.73,3.4783]
[1723689069190,26.71,143.8,143.72,3.4786]
[1723689069387,0.04838075,143.79,143.76,0.04561407]
[1723689069582,3.4774,143.77,143.76,0.04561407]
[1723689069789,0.04838075,143.79,143.76,0.04561407]
[1723689069989,5.08838075,143.79,143.76,0.04561407]
[1723689070685,0.04838075,143.79,143.76,33.44561407]
[1723689071788,0.04838075,143.79,143.76,0.04561407]
[1723689073488,0.04838075,143.79,143.77,3.4773]
[1723689073689,0.04838075,143.79,143.76,0.04561407]
[1723689074093,3.4774,143.77,143.76,0.04561407]
[1723689074497,0.04838075,143.79,143.69,33.4]
[1723689074689,0.04838075,143.79,143.69,3.4791]
[1723689074996,5.04,143.78,143.69,3.4791]
[1723689075194,3.4781,143.74,143.7,3.4788]
[1723689075394,1.3355,143.77,143.69,33.4]
[1723689075692,3.477,143.78,143.71,33.4]
[1723689075998,3.477,143.78,143.74,3.4776]
[1723689076491,0.05288575,143.76,143.75,3.4776]
[1723689077086,1.3355,143.85,143.74,33.4]
[1723689077293,5.04,143.87,143.78,33.4]
[1723689077491,1.3139,143.88,143.81,33.4]
[1723689077691,3.4751,143.86,143.82,3.4758]
[1723689077890,0.0505651,143.84,143.82,3.4758]
[1723689078099,0.0505651,143.84,143.81,33.44661226]
[1723689078285,0.0505651,143.84,143.81,36.92261226]
[1723689078599,0.0505651,143.84,143.81,33.44661226]
[1723689079294,0.0505651,143.84,143.81,0.04661226]
[1723689079488,3.4759,143.82,143.81,0.04661226]
[1723689080393,3.4757,143.83,143.81,0.04661226]
[1723689081000,3.4756,143.83,143.81,0.04661226]
[1723689081193,0.0505651,143.84,143.81,0.04661226]
[1723689081998,3.4758,143.83,143.81,0.04661226]
[1723689082392,0.0505651,143.84,143.81,0.04661226]
[1723689082796,0.0505651,143.84,143.83,33.4]
[1723689082992,0.0505651,143.84,143.83,36.8756]
[1723689083992,5.04,143.91,143.85,33.4]
[1723689084201,2.5685,143.92,143.85,33.4]
[1723689084392,2.5685,143.92,143.86,3.4747]
[1723689084990,3.51895712,143.9,143.88,0.05135002]
[1723689085300,0.04475712,143.9,143.88,0.05135002]
[1723689087497,3.51865712,143.9,143.88,0.05135002]
[1723689088593,3.4742,143.89,143.88,0.05135002]
[1723689088798,0.04475712,143.9,143.88,0.05135002]
[1723689091002,0.04475712,143.9,143.89,3.4742]
[1723689091401,0.04475712,143.9,143.88,0.05135002]
[1723689092301,3.51875712,143.9,143.88,0.05135002]
[1723689093807,0.04475712,143.9,143.88,0.05135002]
[1723689094911,3.4742,143.89,143.88,0.05135002]
[1723689095209,0.04475712,143.9,143.88,0.05135002]
[1723689095407,3.4742,143.89,143.88,0.05135002]
[1723689096008,3.51875712,143.9,143.88,0.05135002]
[1723689096311,0.04475712,143.9,143.88,0.05135002]
[1723689097708,0.04475712,143.9,143.88,3.52575002]
[1723689098211,0.04475712,143.9,143.88,0.05135002]
[1723689099515,3.4742,143.89,143.88,0.05135002]
[1723689101218,33.4,143.89,143.78,33.4]
[1723689101423,33.4,143.89,143.81,3.476]
[1723689101621,1.2259,143.89,143.81,3.476]
[1723689101813,3.475,143.86,143.78,38.44]
[1723689102019,3.475,143.86,143.82,3.4758]
[1723689103022,0.05186474,143.85,143.83,0.04946439]
[1723689103528,3.52706474,143.85,143.83,0.04946439]
[1723689103921,0.05186474,143.85,143.83,0.04946439]
[1723689104123,3.4754,143.84,143.83,0.04946439]
[1723689104322,0.05186474,143.85,143.83,0.04946439]
[1723689106930,0.05186474,143.85,143.84,3.4754]
[1723689107632,3.4739,143.91,143.83,33.44946439]
[1723689107831,6.3585,143.92,143.83,33.4]
[1723689108130,3.474,143.9,143.86,3.4747]
[1723689108330,6.3585,143.92,143.83,33.4]
[1723689108528,1.3185,143.92,143.85,33.4]
[1723689108731,1.3185,143.92,143.84,33.4]
[1723689108932,0.04674307,143.89,143.86,0.04609704]
[1723689109927,0.04674307,143.89,143.88,33.4]